[Event "Reykjavik Open 2024"]
[Site "Reykjavik"]
[Date "2024.03.16"]
[Round "3.15"]
[White "Nevednichy, Vladislav"]
[Black "Heimisson, Hilmir Freyr"]
[Result "1-0"]
[ECO "C55"]
[WhiteElo "2445"]
[BlackElo "2355"]
[Annotator "TA"]
[PlyCount "143"]
[EventDate "2024.03.12"]
[EventCountry "ISL"]
[SourceTitle "playchess.com"]
[Source "ChessBase"]
[SourceQuality "1"]
[TimeControl "40/5400+30:1800+30"]

{[%evp 10,143,32,23,25,28,44,34,35,33,35,20,14,16,8,0,0,0,17,10,9,26,16,-22,-10,0,38,18,49,49,43,54,58,55,64,63,76,50,67,46,83,84,82,46,62,63,58,75,148,107,125,116,143,150,232,153,171,130,255,129,116,105,99,97,99,0,0,0,0,0,8,9,8,8,8,0,103,103,103,104,119,119,102,105,112,114,114,121,121,121,218,218,208,193,193,193,193,193,193,193,689,678,624,563,1572,1437,3554,2435,3706,3690,2687,2665,12830,12818,12545,4759,870,469,12850,11302,29955,29958,29954,29960,29950,29961,29980,29981,29981,29982,29982,29983,29984,29984,29985,29986]} 1. e4 {[%emt 0:00:04]} e5 {[%emt 0:00:43]} 2. Bc4 {[%emt 0:00:08]} Nf6 {[%emt 0:00:53]} 3. d3 {[%emt 0:00:11]} Nc6 {[%emt 0:01:00]} 4. Nf3 {[%emt 0:00:06]} h6 {[%emt 0:00:35]} 5. c3 {[%emt 0:00:46]} d6 {[%emt 0:00:19]} 6. O-O {[%emt 0:00:09]} g5 {[%emt 0:01:13]} 7. Nbd2 {[%emt 0:02:38]} Bg7 {[%emt 0:01:28]} 8. Bb3 {[%emt 0:03:58]} a5 {[%emt 0:02:21] White is slightly better.} 9. a4 {[%emt 0:02:16]} Bd7 {[%emt 0:01:51]} 10. Nc4 {[%emt 0:02:33]} Be6 {[%emt 0:01:11]} 11. Re1 {[%emt 0:01:36]} g4 {[%emt 0:02:46]} 12. Nfd2 {[%emt 0:01:09]} h5 {[%emt 0:00:32]} 13. Ne3 {[%emt 0:07:53]} Qd7 {[%emt 0:14:18]} 14. Bc4 {[%emt 0:21:56]} Ne7 {[%emt 0:14:21]} 15. d4 {[%emt 0:03:01] Hoping for d5.} exd4 {[%emt 0:03:49]} 16. Bxe6 {[%emt 0:10:28]} fxe6 {[%emt 0:00:45]} 17. cxd4 {[%emt 0:00:03]} d5 {[%emt 0:15:06]} 18. e5 {[%emt 0:01:33]} Ne4 {[%emt 0:00:22]} 19. Nxe4 {[%emt 0:14:42]} dxe4 {[%emt 0:00:07]} 20. Nc2 {[%emt 0:00:27]} O-O {[%emt 0:10:23][%cal Oc7c5]} 21. Rxe4 {[%emt 0:02:39]} Rf7 {[%emt 0:02:19]} 22. Bg5 {[%emt 0:02:31]} Ng6 {[%emt 0:02:14]} 23. Re2 {[%emt 0:10:49]} Rf5 {[%emt 0:02:45]} 24. Qd2 {[%emt 0:02:45]} Kh7 {[%emt 0:00:25]} 25. g3 {[%emt 0:01:14]} Raf8 {[%emt 0:05:47]} 26. Rae1 {[%emt 0:01:09]} b6 {[%emt 0:05:25]} 27. b3 {[%emt 0:02:23]} R8f7 {[%emt 0:02:00]} 28. Bf6 {[%emt 0:01:30]} Bh6 {[%emt 0:03:45]} (28... Bxf6 $142 29. exf6 R5xf6) 29. Qd3 {[%emt 0:00:19]} Rf3 {[%emt 0:03:08]} 30. Qc4 {[%emt 0:00:06]} c6 {[%emt 0:00:56]} 31. Ne3 {[%emt 0:02:32]} Rf8 {[%emt 0:01:55]} (31... Bg7 $16 32. Bxg7 Kxg7) 32. Ng2 {[%emt 0:00:46]} Qd5 {[%emt 0:00:36]} 33. Rc2 {[%emt 0:01:29]} Rc8 {[%emt 0:00:45]} (33... Qxc4 $16 34. Rxc4 (34. bxc4 Ra3 $14) 34... Rc8) 34. Qxd5 {[%emt 0:00:51]} (34. Qa6 $1 $18 {[%cal Ra6c8]} Qd7 35. Qxb6) 34... exd5 $16 {[%emt 0:00:01]} 35. Rb1 {[%emt 0:00:28] aiming for Ne1.} Rd3 {[%emt 0:00:31]} 36. e6 {[%emt 0:00:34]} Rf3 {[%emt 0:00:38]} 37. Be5 {[%emt 0:00:34]} (37. Bh4 $16) 37... Nxe5 $1 $11 {[%emt 0:00:50]} 38. dxe5 {[%emt 0:00:01] Nh4 is the strong threat.} Rf5 {[%emt 0:00:49]} 39. Re1 {[%emt 0:00:50]} c5 {[%emt 0:00:25]} 40. Nh4 {[%emt 0:00:02]} Rg5 {[%emt 0:00:36]} 41. f4 $36 {[%emt 0:30:39][%mdl 2048] White has some pressure.} gxf3 {[%emt 0:03:49]} 42. Nxf3 {[%emt 0:00:00]} (42. e7 {is interesting.} Re8 43. Rc3 d4 44. Rxf3 Rxe7 45. e6) 42... Rg6 {[%emt 0:07:55] [#]} (42... Rgg8 $11) 43. Rd1 $1 $16 {[%emt 0:00:00] White is more active. White leaves nothing to chance now.} d4 {[%emt 0:10:17] [#]} 44. Nxd4 $1 {[%emt 0:00:00] Nf5 would now be deadly.} ({Worse is} 44. e7 Re8 $15 (44... Re6 $2 45. Rxd4 Be3+ 46. Kf1 $18)) 44... Be3+ {[%emt 0:01:59]} 45. Kg2 {[%emt 0:00:00]} Bxd4 {[%emt 0:00:20]} 46. Rxd4 {[%emt 0:00:00]} cxd4 {[%emt 0:00:48]} 47. Rxc8 {[%emt 0:00:00]} Rxe6 {[%emt 0:00:05][%mdl 4096] Endgame. KR-KR} 48. Rd8 {[%emt 0:00:00]} Rxe5 {[%emt 0:00:27]} 49. Rxd4 {[%emt 0:00:00]} b5 {[%emt 0:04:24]} (49... Re3 $16 {might work better.}) 50. Kf3 $18 {[%emt 0:00:00]} Rc5 {[%emt 0:01:09]} 51. Ke4 {[%emt 0:00:00] Strongly threatening Rd5.} bxa4 {[%emt 0:01:32]} 52. bxa4 {[%emt 0:00:00]} ({Don't do} 52. Rxa4 $6 Rb5 $14) 52... Rc2 {[%emt 0:01:40]} 53. h4 {[%emt 0:00:00] And now Rd5 would win.} Rc3 {[%emt 0:00:31]} 54. Kf4 {[%emt 0:00:00]} Kg6 $2 {[%emt 0:00:45]} (54... Ra3 55. Kg5 Rxg3+ 56. Kxh5 Ra3) 55. Rd6+ {[%emt 0:00:00]} Kf7 {[%emt 0:01:00]} 56. Rd5 {[%emt 0:00:00][%csl LRa5,LRh5]} Rc4+ {[%emt 0:00:06]} 57. Kg5 {[%emt 0:00:00]} Rg4+ {[%emt 0:00:24]} 58. Kxh5 {[%emt 0:00:00]} Rxg3 {[%emt 0:00:00]} 59. Rf5+ {[%emt 0:00:00]} Ke6 {[%emt 0:00:11]} 60. Rxa5 {[%emt 0:00:00]} Kf7 {[%emt 0:01:14]} 61. Rf5+ {[%emt 0:00:00]} Ke6 {[%emt 0:00:03]} 62. Rb5 {[%emt 0:00:00]} Kf7 {[%emt 0:01:45]} 63. a5 {[%emt 0:00:00] Rg5 would kill now.} Ra3 {[%emt 0:00:29]} (63... Kf6 $142 64. a6 Ra3) 64. Kg5 {[%emt 0:00:00] White threatens h5 and mate.} Ra1 {[%emt 0:01:01]} 65. h5 {[%emt 0:00:00][%cal Bh4h5,Bh5h6][%mdl 32] White mates.} Rg1+ {[%emt 0:00:30]} 66. Kf5 {[%emt 0:00:00]} Rf1+ {[%emt 0:00:10]} 67. Ke5 {[%emt 0:00:00]} Ke7 {[%emt 0:00:35]} 68. Rb7+ {[%emt 0:00:00]} Kd8 {[%emt 0:00:08]} 69. h6 {[%emt 0:00:00]} Re1+ {[%emt 0:00:44]} 70. Kd6 {[%emt 0:00:00][%cal Rb7b8]} Rd1+ {[%emt 0:00:09]} 71. Kc6 {[%emt 0:00:00]} Rc1+ {[%emt 0:00:32]} 72. Kb6 {[%emt 0:00:00] Weighted Error Value: White=0.15 (very precise) /Black=0.31.  Mistake:       	White=2     	Black=6      Inaccurate:     	White=4     	Black=5      OK:         	White=21    	Black=15     Best:        	White=3     	Black=8      Strong:       	White=2     	Black=1} 1-0

[Event "Reykjavik Open 2024"]
[Site "Reykjavik"]
[Date "2024.03.16"]
[Round "3.16"]
[White "Jacobsen, Mikkel Manosri"]
[Black "Injac, Teodora"]
[Result "0-1"]
[ECO "A11"]
[WhiteElo "2367"]
[BlackElo "2434"]
[Annotator "TA"]
[PlyCount "66"]
[EventDate "2024.03.12"]
[EventCountry "ISL"]
[SourceTitle "playchess.com"]
[Source "ChessBase"]
[SourceQuality "1"]
[TimeControl "40/5400+30:1800+30"]

{[%evp 14,66,39,-11,-6,-15,23,12,19,8,11,0,12,16,11,0,12,8,9,0,4,-91,-43,-72,-62,-59,-44,-66,-75,-144,-144,-142,-141,-143,-130,-131,-67,-143,-74,-133,48,-369,-343,-385,-400,-393,-400,-389,-379,-364,-327,-408,-310,-521,-538]} 1. c4 {[%emt 0:00:03]} c6 {[%emt 0:00:46]} 2. g3 {[%emt 0:00:07]} d5 {[%emt 0:00:50]} 3. Nf3 {[%emt 0:00:07]} g6 {[%emt 0:00:39]} 4. Bg2 {[%emt 0:00:07]} Bg7 {[%emt 0:00:06]} 5. O-O {[%emt 0:00:36]} Nf6 {[%emt 0:10:29]} 6. b3 {[%emt 0:00:09]} O-O {[%emt 0:02:06]} 7. Bb2 {[%emt 0:00:56]} Bg4 {[%emt 0:05:08]} 8. h3 {[%emt 0:04:53]} (8. d4 $14) 8... Bxf3 $11 {[%emt 0:00:54]} 9. Bxf3 {[%emt 0:00:07]} Re8 {[%emt 0:04:02]} 10. d4 {[%emt 0:07:57]} Nbd7 {[%emt 0:02:02] The position is equal.} 11. Nd2 {[%emt 0:06:05]} e5 {[%emt 0:04:34]} 12. cxd5 {[%emt 0:05:14]} cxd5 {[%emt 0:03:47]} 13. dxe5 {[%emt 0:02:42]} Nxe5 {[%emt 0:00:04]} 14. Bg2 {[%emt 0:04:38]} Qe7 {[%emt 0:03:08]} 15. Rc1 {[%emt 0:04:50]} Rad8 {[%emt 0:03:14]} 16. Rc2 {[%emt 0:05:44]} d4 {[%emt 0:24:36][%cal Oe5c6]} 17. Re1 {[%emt 0:05:20] [#]} (17. Qa1 $11 {keeps the balance.}) 17... Nd3 $1 {[%emt 0:12:55]} 18. Ba3 $1 $15 {[%emt 0:03:20]} Qe6 {[%emt 0:00:09]} (18... Qxa3 $6 19. exd3 Rxe1+ 20. Qxe1 $14) 19. Rf1 {[%emt 0:01:08]} Ne5 {[%emt 0:00:18]} (19... Qxe2 $6 20. Nf3 Qxd1 21. Rxd1 $16) 20. Nc4 {[%emt 0:15:18]} Nc6 {[%emt 0:00:44]} 21. Nd2 {[%emt 0:29:04]} ({White should play} 21. Bxc6 bxc6 22. Kg2) 21... Nd5 $36 {[%emt 0:01:26][%mdl 2048] ...Nc3 is the strong threat. Black is in control.} 22. Ne4 {[%emt 0:01:14]} Nc3 {[%emt 0:00:56]} 23. Nc5 {[%emt 0:00:48]} Qe7 {[%emt 0:02:34] Black has more active pieces.} (23... Nxe2+ $2 24. Kh2 Qe7 25. Nxb7 Qxb7 26. Bxc6 $18 (26. Rxe2 Qa6 $11)) 24. Qc1 {[%emt 0:00:34]} Qc7 {[%emt 0:07:13]} (24... Nxe2+ 25. Rxe2 Qxe2 26. Nxb7 $11) (24... d3 $1 $17 {[%cal Rd3c2]} 25. exd3 Nd4 (25... Ne2+ 26. Rxe2 Qxe2 27. Nxb7 $16) 26. Nxb7 Qd7) 25. e3 {[%emt 0:01:00]} (25. Re1 $15) 25... a5 {[%emt 0:01:19]} (25... dxe3 $142 26. fxe3 (26. Rxc3 $2 e2 $19) 26... Nd5 (26... Qxg3 27. Qe1 $19)) 26. Nxb7 {[%emt 0:00:45]} Rd7 $2 {[%emt 0:07:30] [#]} (26... Qxb7 $17 27. exd4 Ne2+ (27... Bxd4 28. Rxc3 Bxc3 29. Qxc3 $15) 28. Rxe2 Rxe2 29. Bxc6 Qc7) 27. Bb2 $2 {[%emt 0:00:36][%mdl 8192] [#] This move loses the game for White.} Nb4 $1 $19 {[%emt 0:00:25]} ({Less strong is} 27... Qxb7 28. Bxc6 (28. exd4 $2 Nxa2 29. Qa1 Nab4 $19) 28... Qxc6 29. exd4 $15) 28. Bxc3 {[%emt 0:00:35]} dxc3 {[%emt 0:00:19]} 29. Re2 {[%emt 0:00:16] White is weak on the dark squares} Rb8 {[%emt 0:00:55]} ({Stronger than} 29... c2 30. a3 Nd5 31. Qxc2 Qxb7 32. Rd2 $11) 30. a3 {[%emt 0:00:43]} Nd3 {[%emt 0:00:19]} 31. Qc2 {[%emt 0:00:18]} Rxb7 {[%emt 0:00:38]} 32. Rd1 {[%emt 0:00:32][%cal Og2b7]} Ne5 {[%emt 0:01:17]} 33. Rd4 $2 {[%emt 0:00:09]} (33. Bxb7 Qxb7 34. f4 Rxd1+ (34... Nf3+ $2 35. Kf2 $19) 35. Qxd1) 33... Rb8 {[%emt 0:00:52] Weighted Error Value: White=0.54/Black=0.28 (precise) .  Loses game:     	White=1     	---        Mistake:       	White=5     	Black=4      Inaccurate:     	---       	Black=1      OK:         	White=7     	Black=12     Best:        	White=1     	---        Strong:       	White=1     	Black=1} 0-1

[Event "Reykjavik Open 2024"]
[Site "Reykjavik"]
[Date "2024.03.16"]
[Round "3.17"]
[White "Large, Peter G"]
[Black "Deac, Bogdan-Daniel"]
[Result "0-1"]
[ECO "B14"]
[WhiteElo "2262"]
[BlackElo "2690"]
[Annotator "TA"]
[PlyCount "58"]
[EventDate "2024.03.12"]
[EventCountry "ISL"]
[SourceTitle "playchess.com"]
[Source "ChessBase"]
[SourceQuality "1"]
[TimeControl "40/5400+30:1800+30"]

{[%evp 15,58,3,31,35,31,27,41,40,43,28,31,23,22,0,53,26,29,0,45,41,37,32,62,50,66,45,105,64,58,58,85,48,38,36,87,91,65,49,33,0,-19,-20,-26,-457,-452]} 1. e4 {[%emt 0:00:09]} c6 {[%emt 0:03:02][%cal Bc7c6,Bc6d5][%mdl 32]} 2. d4 {[%emt 0:00:32]} d5 {[%emt 0:00:03]} 3. exd5 {[%emt 0:00:22]} cxd5 {[%emt 0:00:04]} 4. c4 {[%emt 0:00:10]} Nf6 {[%emt 0:00:40]} 5. Nc3 {[%emt 0:00:10]} e6 {[%emt 0:00:27]} 6. Nf3 {[%emt 0:00:16]} Bb4 {[%emt 0:00:40]} 7. Bd3 {[%emt 0:00:55][%cal Bf1d3,Bd3c4,Bc4a2][%mdl 32]} dxc4 {[%emt 0:23:37]} 8. Bxc4 {[%emt 0:00:08]} Qc7 {[%emt 0:00:04]} 9. Qe2 {[%emt 0:02:29]} O-O {[%emt 0:06:54]} 10. O-O {[%emt 0:06:45]} Nbd7 {[%emt 0:00:12]} 11. Nb5 {[%emt 0:05:25] White is slightly better.} Qd8 {[%emt 0:00:24]} 12. a3 {[%emt 0:01:54]} Ba5 {[%emt 0:02:41]} 13. Ba2 {[%emt 0:15:03]} a6 {[%emt 0:07:11]} 14. Nd6 {[%emt 0:03:51][%cal Od6f7] [#] Nxf7! is the strong threat.} Qe7 {[%emt 0:08:00]} (14... Bc7 $11 15. Nxc8 Rxc8) 15. Nf5 {[%emt 0:05:21]} Qd8 {[%emt 0:00:22]} 16. Nd6 {[%emt 0:00:08][%cal Od6f7] Strongly threatening Nxf7!} Nb8 {[%emt 0:11:30]} 17. Nxc8 {[%emt 0:05:58]} Qxc8 {[%emt 0:01:36]} 18. Bg5 {[%emt 0:00:39]} Nbd7 {[%emt 0:00:34]} 19. Rac1 {[%emt 0:04:39]} Qb8 {[%emt 0:02:41]} 20. Ne5 {[%emt 0:06:37]} Re8 {[%emt 0:05:34]} (20... Nxe5 $14 21. dxe5 Nd7) 21. Nxd7 {[%emt 0:04:19]} Nxd7 {[%emt 0:00:02]} 22. d5 {[%emt 0:08:42]} Nf8 {[%emt 0:00:04]} 23. Qf3 {[%emt 0:01:47]} Qe5 {[%emt 0:01:50][%csl LRb2,LRg5]} 24. Rc5 {[%emt 0:08:44] [#] Black must now prevent dxe6.} Qxb2 {[%emt 0:01:05]} (24... Rec8 $14 25. Rxc8 (25. Rxa5 Qxg5 26. Qd1 Qe5 $11) 25... Rxc8 26. dxe6 Nxe6 27. Bxe6 (27. Qxb7 $2 {perishes.} Rb8 $19) 27... fxe6) 25. dxe6 $16 {[%emt 0:02:16]} fxe6 {[%emt 0:01:36]} 26. Rxa5 {[%emt 0:01:09]} b6 {[%emt 0:05:06]} 27. Rf5 {[%emt 0:05:05]} ({Better is} 27. Bd5 $14 exd5 28. Rxd5) 27... Qxa2 $11 {[%emt 0:00:10]} 28. Rf7 {[%emt 0:00:11][%cal Of7g7] Hoping for Rxg7+!} Qd5 {[%emt 0:01:52]} 29. Rd1 $2 {[%emt 0:02:45][%mdl 8192]} (29. h4 $11 {and White stays safe.}) 29... Qxg5 {[%emt 0:00:37] Weighted Error Value: White=0.39/Black=0.19 (very precise) .  Loses game:     	White=1     	---        Mistake:       	White=1     	Black=3      Inaccurate:     	White=4     	Black=3      OK:         	White=5     	Black=6      Best:        	White=2     	Black=3} 0-1

[Event "Reykjavik Open 2024"]
[Site "Reykjavik"]
[Date "2024.03.16"]
[Round "3.18"]
[White "Bjarnason, Snorri Vikanes"]
[Black "Gikas, Andreas Basilius"]
[Result "0-1"]
[ECO "A12"]
[WhiteElo "1875"]
[BlackElo "2104"]
[Annotator "NA RC"]
[PlyCount "62"]
[EventDate "2024.03.12"]
[EventCountry "ISL"]
[SourceTitle "playchess.com"]
[Source "ChessBase"]
[SourceQuality "1"]
[TimeControl "40/5400+30:1800+30"]

1. Nf3 {[%emt 0:00:09]} d5 {[%emt 0:00:13]} 2. g3 {[%emt 0:00:12]} Nf6 {[%emt 0:00:15]} 3. Bg2 {[%emt 0:00:09]} c6 {[%emt 0:00:11]} 4. O-O {[%emt 0:00:16]} Bf5 {[%emt 0:00:07]} 5. b3 {[%emt 0:09:50]} e6 {[%emt 0:03:06]} 6. c4 {[%emt 0:03:10]} Nbd7 {[%emt 0:00:31]} 7. Nh4 {[%emt 0:01:10]} Be4 {[%emt 0:11:59]} 8. f3 {[%emt 0:01:01]} Bxb1 {[%emt 0:00:13]} 9. Rxb1 {[%emt 0:00:12]} Qb6+ {[%emt 0:00:46]} 10. d4 {[%emt 0:01:12]} dxc4 {[%emt 0:01:25]} 11. Be3 {[%emt 0:14:06]} Nd5 {[%emt 0:07:00]} 12. Qc1 {[%emt 0:01:17]} Nxe3 {[%emt 0:15:34]} 13. Qxe3 {[%emt 0:00:13]} c3 {[%emt 0:01:21]} 14. f4 {[%emt 0:03:39]} Be7 {[%emt 0:08:25]} 15. Nf3 {[%emt 0:00:32]} Qa5 {[%emt 0:00:48]} 16. Rfc1 {[%emt 0:02:00]} Nf6 {[%emt 0:01:52]} 17. Qxc3 {[%emt 0:01:40]} Qxa2 {[%emt 0:03:14]} 18. Nd2 {[%emt 0:04:40]} Qa6 {[%emt 0:04:32]} 19. Nc4 {[%emt 0:02:12]} O-O {[%emt 0:08:41]} 20. Ra1 {[%emt 0:06:12]} Qb5 {[%emt 0:00:12]} 21. Ra5 {[%emt 0:00:47]} Qb4 {[%emt 0:00:16]} 22. Qd3 {[%emt 0:05:39]} b5 {[%emt 0:03:25]} 23. Raa1 {[%emt 0:07:00]} bxc4 {[%emt 0:01:19]} 24. Rxc4 {[%emt 0:00:08]} Qd6 {[%emt 0:03:49]} 25. Rxc6 {[%emt 0:00:20]} Qd7 {[%emt 0:00:22]} 26. Qc4 {[%emt 0:01:22]} Rac8 {[%emt 0:03:37]} 27. Raa6 {[%emt 0:00:42]} Rxc6 {[%emt 0:04:43]} 28. Rxc6 {[%emt 0:00:11]} Bd8 {[%emt 0:01:25]} 29. e3 {[%emt 0:05:02]} Bb6 {[%emt 0:00:21]} 30. h3 {[%emt 0:02:50]} Nd5 {[%emt 0:00:36]} 31. Kf2 {[%emt 0:00:43]} Ne7 {[%emt 0:00:53]} 0-1

[Event "Reykjavik Open 2024"]
[Site "Reykjavik"]
[Date "2024.03.16"]
[Round "3.19"]
[White "Omarsson, Josef"]
[Black "Maack, Kjartan"]
[Result "1/2-1/2"]
[ECO "A84"]
[WhiteElo "1803"]
[BlackElo "2102"]
[Annotator "RC"]
[PlyCount "69"]
[EventDate "2024.03.12"]
[EventCountry "ISL"]
[SourceTitle "playchess.com"]
[Source "ChessBase"]
[SourceQuality "1"]
[TimeControl "40/5400+30:1800+30"]

1. d4 {[%emt 0:00:06]} d5 {[%emt 0:00:12]} 2. c4 {[%emt 0:00:22]} e6 {[%emt 0:00:06]} 3. Nc3 {[%emt 0:00:28]} c6 {[%emt 0:00:09]} 4. e3 {[%emt 0:00:40]} f5 {[%emt 0:01:44]} 5. Bd3 {[%emt 0:00:41]} Nf6 {[%emt 0:00:13]} 6. Nge2 {[%emt 0:00:34]} Bd6 {[%emt 0:04:02]} 7. O-O {[%emt 0:00:59]} O-O {[%emt 0:01:19]} 8. Ng3 {[%emt 0:09:29]} Ne4 {[%emt 0:03:45]} 9. c5 {[%emt 0:03:28]} Bc7 {[%emt 0:03:27]} 10. f4 {[%emt 0:02:01]} b6 {[%emt 0:07:02]} 11. Na4 {[%emt 0:08:59]} bxc5 {[%emt 0:20:03]} 12. Bxe4 {[%emt 0:00:21]} fxe4 {[%emt 0:04:54]} 13. Nxc5 {[%emt 0:00:16]} Na6 {[%emt 0:00:25]} 14. Qc2 {[%emt 0:00:49]} Nxc5 {[%emt 0:08:18]} 15. Qxc5 {[%emt 0:00:21]} Qd6 {[%emt 0:01:10]} 16. Qxd6 {[%emt 0:02:24]} Bxd6 {[%emt 0:00:02]} 17. Bd2 {[%emt 0:00:10]} c5 {[%emt 0:02:04]} 18. dxc5 {[%emt 0:02:34]} Bxc5 {[%emt 0:00:21]} 19. Rfc1 {[%emt 0:01:25]} Bb6 {[%emt 0:00:52]} 20. a4 {[%emt 0:01:33]} a5 {[%emt 0:04:11]} 21. Rc6 {[%emt 0:03:38]} Rb8 {[%emt 0:00:21]} 22. Ne2 {[%emt 0:04:39]} Bd7 {[%emt 0:11:12]} 23. Rc2 {[%emt 0:08:52]} Rfc8 {[%emt 0:04:36]} 24. Rc3 {[%emt 0:05:16]} Kf7 {[%emt 0:02:44]} 25. Ra2 {[%emt 0:07:36]} e5 {[%emt 0:08:47]} 26. fxe5 {[%emt 0:01:22]} Ke6 {[%emt 0:00:11]} 27. Nd4+ {[%emt 0:02:13]} Kxe5 {[%emt 0:00:22]} 28. Rxc8 {[%emt 0:00:25]} Rxc8 {[%emt 0:02:10]} 29. Bc3 {[%emt 0:00:12]} Kd6 {[%emt 0:00:29]} 30. Kf2 {[%emt 0:02:02]} Rc4 {[%emt 0:05:01]} 31. Nb3 {[%emt 0:04:38]} Rxa4 {[%emt 0:03:52]} 32. Rxa4 {[%emt 0:00:46]} Bxa4 {[%emt 0:00:02]} 33. Nxa5 {[%emt 0:00:22]} g6 {[%emt 0:01:35]} 34. b3 {[%emt 0:00:45]} Bd7 {[%emt 0:00:50]} 35. b4 {[%emt 0:00:20]} 1/2-1/2

[Event "Reykjavik Open 2024"]
[Site "Reykjavik"]
[Date "2024.03.16"]
[Round "3.20"]
[White "Wong-Godfrey, Emerson P"]
[Black "Fossheim, Yngve"]
[Result "1/2-1/2"]
[ECO "B22"]
[WhiteElo "1799"]
[BlackElo "2090"]
[Annotator "RC"]
[PlyCount "109"]
[EventDate "2024.03.12"]
[EventCountry "ISL"]
[SourceTitle "playchess.com"]
[Source "ChessBase"]
[SourceQuality "1"]
[TimeControl "40/5400+30:1800+30"]

1. e4 {[%emt 0:00:08]} c5 {[%emt 0:00:04]} 2. c3 {[%emt 0:00:07]} d5 {[%emt 0:01:37]} 3. exd5 {[%emt 0:00:53]} Qxd5 {[%emt 0:00:07]} 4. d4 {[%emt 0:00:05]} Nc6 {[%emt 0:00:19]} 5. Nf3 {[%emt 0:00:11]} Bg4 {[%emt 0:00:04]} 6. Be2 {[%emt 0:00:08]} cxd4 {[%emt 0:00:06]} 7. cxd4 {[%emt 0:00:08]} e6 {[%emt 0:00:03]} 8. O-O {[%emt 0:00:25]} Nf6 {[%emt 0:00:26]} 9. Nc3 {[%emt 0:00:37]} Qa5 {[%emt 0:00:04]} 10. h3 {[%emt 0:04:52]} Bh5 {[%emt 0:00:15]} 11. Bd2 {[%emt 0:00:27]} Bd6 {[%emt 0:02:20]} 12. Rc1 {[%emt 0:06:10]} O-O {[%emt 0:04:52]} 13. Ne4 {[%emt 0:12:50]} Qd8 {[%emt 0:00:14]} 14. Nxf6+ {[%emt 0:01:38]} gxf6 {[%emt 0:07:29]} 15. Bc3 {[%emt 0:13:28]} Ne7 {[%emt 0:00:52]} 16. Nh2 {[%emt 0:08:01]} Bxe2 {[%emt 0:01:34]} 17. Qxe2 {[%emt 0:00:02]} Bxh2+ {[%emt 0:00:18]} 18. Kxh2 {[%emt 0:00:02]} Nd5 {[%emt 0:00:22]} 19. Bd2 {[%emt 0:02:14]} Qd6+ {[%emt 0:00:36]} 20. g3 {[%emt 0:05:19]} Kh8 {[%emt 0:01:55]} 21. Qh5 {[%emt 0:04:13]} Qd7 {[%emt 0:01:49]} 22. Qf3 {[%emt 0:04:25]} Rg8 {[%emt 0:06:31]} 23. Rc5 {[%emt 0:03:20]} Rg6 {[%emt 0:03:32]} 24. Rfc1 {[%emt 0:01:10]} Rag8 {[%emt 0:15:58]} 25. h4 {[%emt 0:03:47]} Qd6 {[%emt 0:03:35]} 26. h5 {[%emt 0:03:23]} Rg4 {[%emt 0:02:45]} 27. Rc8 {[%emt 0:02:31]} f5 {[%emt 0:02:24]} 28. Bh6 {[%emt 0:02:57]} Qd7 {[%emt 0:07:13]} 29. Rxg8+ {[%emt 0:07:04]} Rxg8 {[%emt 0:01:16]} 30. Qe2 {[%emt 0:02:00]} Qd6 {[%emt 0:12:43]} 31. Qe5+ {[%emt 0:03:39]} Qxe5 {[%emt 0:00:02]} 32. dxe5 {[%emt 0:00:02]} Re8 {[%emt 0:02:35]} 33. Bg5 {[%emt 0:01:51]} Kg7 {[%emt 0:01:01]} 34. a4 {[%emt 0:02:02]} Rb8 {[%emt 0:05:21]} 35. Kg2 {[%emt 0:03:28]} Kf8 {[%emt 0:01:08]} 36. Kf3 {[%emt 0:00:30]} Ke8 {[%emt 0:00:19]} 37. Be3 {[%emt 0:03:05]} a6 {[%emt 0:01:54]} 38. a5 {[%emt 0:00:51]} Kd7 {[%emt 0:00:20]} 39. Rc4 {[%emt 0:01:21]} Rc8 {[%emt 0:01:13]} 40. Rxc8 {[%emt 0:00:30]} Kxc8 {[%emt 0:00:02]} 41. Bd2 {[%emt 0:03:38]} Kd7 {[%emt 0:03:06]} 42. g4 {[%emt 0:02:41]} f6 {[%emt 0:27:02]} 43. gxf5 {[%emt 0:06:04]} exf5 {[%emt 0:01:13]} 44. exf6 {[%emt 0:00:40]} Nxf6 {[%emt 0:00:56]} 45. Kf4 {[%emt 0:02:03]} Ke6 {[%emt 0:04:43]} 46. h6 {[%emt 0:13:09]} Ng4 {[%emt 0:02:18]} 47. Kg3 {[%emt 0:00:29]} Kf6 {[%emt 0:01:03]} 48. f3 {[%emt 0:01:02]} Ne5 {[%emt 0:00:26]} 49. Bc3 {[%emt 0:01:12]} Ke6 {[%emt 0:00:04]} 50. Bxe5 {[%emt 0:02:52]} Kxe5 {[%emt 0:00:05]} 51. b3 {[%emt 0:00:17]} Kf6 {[%emt 0:07:24]} 52. Kf4 {[%emt 0:00:20]} Kg6 {[%emt 0:00:14]} 53. Ke5 {[%emt 0:00:49]} Kxh6 {[%emt 0:00:52]} 54. Kxf5 {[%emt 0:01:08]} Kg7 {[%emt 0:00:42]} 55. Ke6 {[%emt 0:01:12]} 1/2-1/2